{"text_format":"1","workbook":"xlsx","n_sheets":6,"sheets":["Dataset","Cell Values","Modifications","Remove Values","Count","Sum"],"not_rendered":{"charts":0,"images":0,"macros":0,"external_links":0,"defined_names":1,"comments":0,"pivot_tables":0},"unopened":[],"bounds":{"document_bytes":16777216,"sheet_cells":100000,"rows_first":2000,"rows_last":500,"rows_between":2000,"halvings":0,"cell_chars":16384,"cell_head_chars":4096},"cells_cut":0,"cells_raw":0,"read":"whole","date_system":"1900"}

{"sheet":"Dataset","index":0,"n_rows":10,"n_cols":3,"rows_kept":10,"cut":false,"hidden":false,"merged":[[1,1,1,2]]}
[]
[null,"If Cell Color Is Green Then"]
[]
[null,"Name","Presence"]
[null,"Jenice",{"$f":"GreenCheck","v":0}]
[null,"Jenkins"]
[null,"Rebecca"]
[null,"Thomas"]
[null,"Todd"]
[null,"Paul"]

{"sheet":"Cell Values","index":1,"n_rows":10,"n_cols":3,"rows_kept":10,"cut":false,"hidden":false,"merged":[[1,1,1,2]]}
[]
[null,"Setting Cell Values"]
[]
[null,"Name","Presence"]
[null,"Jenice",{"$f":"IF(GreenCheck=50,\"Absent\",\"Present\")","v":"Present"}]
[null,"Jenkins",{"$f":"IF(GreenCheck=50,\"Absent\",\"Present\")","v":"Absent"}]
[null,"Rebecca",{"$f":"IF(GreenCheck=50,\"Absent\",\"Present\")","v":"Present"}]
[null,"Thomas",{"$f":"IF(GreenCheck=50,\"Absent\",\"Present\")","v":"Present"}]
[null,"Todd",{"$f":"IF(GreenCheck=50,\"Absent\",\"Present\")","v":"Absent"}]
[null,"Paul",{"$f":"IF(GreenCheck=50,\"Absent\",\"Present\")","v":"Present"}]

{"sheet":"Modifications","index":2,"n_rows":10,"n_cols":3,"rows_kept":10,"cut":false,"hidden":false,"merged":[[1,1,1,2]]}
[]
[null,"Modifying Cell Values"]
[]
[null,"Name","Presence"]
[null,"Jenice",{"$f":"IF(GreenCheck=50,\"Absent\",\"Present\")","v":"Present"}]
[null,"Jenkins",{"$f":"IF(GreenCheck=50,\"Absent\",\"Present\")","v":"Absent"}]
[null,"Rebecca",{"$f":"IF(GreenCheck=50,\"Absent\",\"Present\")","v":"Present"}]
[null,"Thomas",{"$f":"IF(GreenCheck=50,\"Absent\",\"Present\")","v":"Present"}]
[null,"Todd",{"$f":"IF(GreenCheck=50,\"Absent\",\"Present\")","v":"Absent"}]
[null,"Paul",{"$f":"IF(GreenCheck=50,\"Absent\",\"Present\")","v":"Present"}]

{"sheet":"Remove Values","index":3,"n_rows":10,"n_cols":3,"rows_kept":10,"cut":false,"hidden":false,"merged":[[1,1,1,2]]}
[]
[null,"Removing Cell Values"]
[]
[null,"Name","Presence"]
[null,"Jenice",{"$f":"IF(GreenCheck=50,\"\",\"Present\")","v":"Present"}]
[null,"Jenkins",{"$f":"IF(GreenCheck=50,\"\",\"Present\")","v":""}]
[null,"Rebecca",{"$f":"IF(GreenCheck=50,\"\",\"Present\")","v":"Present"}]
[null,"Thomas",{"$f":"IF(GreenCheck=50,\"\",\"Present\")","v":"Present"}]
[null,"Todd",{"$f":"IF(GreenCheck=50,\"\",\"Present\")","v":""}]
[null,"Paul",{"$f":"IF(GreenCheck=50,\"\",\"Present\")","v":"Present"}]

{"sheet":"Count","index":4,"n_rows":12,"n_cols":3,"rows_kept":12,"cut":false,"hidden":false,"merged":[[1,1,1,2]]}
[]
[null,"Counting Green Cells"]
[]
[null,"Name","Color Code"]
[null,"Jenice",{"$f":"GreenCheck","v":0}]
[null,"Jenkins",{"$f":"GreenCheck","v":50}]
[null,"Rebecca",{"$f":"GreenCheck","v":0}]
[null,"Thomas",{"$f":"GreenCheck","v":0}]
[null,"Todd",{"$f":"GreenCheck","v":50}]
[null,"Paul",{"$f":"GreenCheck","v":0}]
[]
[null,"No of Green Values",{"$f":"COUNTIF(C5:C10,50)","v":2}]

{"sheet":"Sum","index":5,"n_rows":12,"n_cols":4,"rows_kept":12,"cut":false,"hidden":false,"merged":[[1,1,1,3]]}
[]
[null,"Calculating Green Cell Values"]
[]
[null,"Name","Color Code","Sales"]
[null,"Jenice",{"$f":"GreenCheck","v":0},700]
[null,"Jenkins",{"$f":"GreenCheck","v":50},532]
[null,"Rebecca",{"$f":"GreenCheck","v":0},686]
[null,"Thomas",{"$f":"GreenCheck","v":0},708]
[null,"Todd",{"$f":"GreenCheck","v":50},743]
[null,"Paul",{"$f":"GreenCheck","v":0},508]
[]
[null,"Sales By Green",{"$f":"SUMIF(C5:C10,50,D5:D10)","v":1275}]